fUST/lending_fUST_20250912
["ID","MTS","AMOUNT","RATE_DAILY","PERIOD"]
[385118160,1757665860865,-480.0,0.00014794,2]
[385118163,1757665860875,-480.0,0.00014794,2]
[385118164,1757665860884,-480.0,0.00014794,2]
[385118167,1757665860894,-528.24,0.00014794,2]
[385118169,1757665860904,-480.0,0.00014794,2]
[385118171,1757665860913,-480.0,0.00014794,2]
[385118173,1757665860922,-480.0,0.00014794,2]
[385118175,1757665860931,-480.0,0.00014794,2]
[385118176,1757665860940,-480.0,0.00014794,2]
[385118178,1757665860950,-158.10371533,0.00014794,2]
[385118180,1757665860959,-480.0,0.00014794,2]
[385118182,1757665860969,-579.51490514,0.00014794,2]
[385118184,1757665860978,-806.24,0.00014794,2]
[385118186,1757665860987,-625.38679982,0.00014794,2]
[385118188,1757665860996,-480.0,0.00014794,2]
[385118191,1757665861006,-480.0,0.00014794,2]
[385118192,1757665861015,-480.0,0.00014794,2]
[385118195,1757665861025,-480.0,0.00014794,2]
[385118197,1757665861034,-480.0,0.00014794,2]
[385118199,1757665861044,-480.0,0.00014794,2]
[385118201,1757665861053,-480.0,0.00014794,2]
[385118203,1757665861063,-480.0,0.00014794,2]
[385118205,1757665861072,-480.0,0.00014794,2]
[385118207,1757665861082,-480.0,0.00014794,2]
[385118209,1757665861091,-480.0,0.00014794,2]
[385118211,1757665861100,-480.0,0.00014794,2]
[385118213,1757665861109,-480.0,0.00014794,2]
[385118215,1757665861118,-480.0,0.00014794,2]
[385118217,1757665861127,-480.0,0.00014794,2]
[385118218,1757665861136,-370.37340846,0.00014794,2]
[385118220,1757665861145,-480.0,0.00014794,2]
[385118222,1757665861154,-480.0,0.00014794,2]
[385118225,1757665861164,-480.0,0.00014794,2]
[385118227,1757665861174,-480.0,0.00014794,2]
[385118229,1757665861183,-480.0,0.00014794,2]
[385118231,1757665861192,-480.0,0.00014794,2]
[385118233,1757665861201,-480.0,0.00014794,2]
[385118235,1757665861211,-480.0,0.00014794,2]
[385118236,1757665861220,-480.0,0.00014794,2]
[385118238,1757665861229,-494.76533007,0.00014794,2]
[385118240,1757665861239,-480.0,0.00014794,2]
[385118242,1757665861248,-480.0,0.00014794,2]
[385118244,1757665861256,-480.0,0.00014794,2]
[385118247,1757665861267,-480.0,0.00014794,2]
[385118249,1757665861276,-480.0,0.00014794,2]
[385118251,1757665861286,-480.0,0.00014794,2]
[385118253,1757665861295,-480.0,0.00014794,2]
[385118254,1757665861305,-171.45641597,0.00014794,2]
[385118256,1757665861315,-480.0,0.00014794,2]
[385118258,1757665861324,-480.0,0.00014794,2]
[385118260,1757665861333,-3883.89,0.00014794,2]
[385118262,1757665861343,-480.0,0.00014794,2]
[385118264,1757665861351,-480.0,0.00014794,2]
[385118266,1757665861361,-480.0,0.00014794,2]
[385118268,1757665861370,-480.0,0.00014794,2]
[385118270,1757665861379,-480.0,0.00014794,2]
[385118272,1757665861389,-488.80557099,0.00014794,2]
[385118274,1757665861398,-480.0,0.00014794,2]
[385118276,1757665861407,-480.0,0.00014794,2]
[385118278,1757665861417,-480.0,0.00014794,2]
[385118280,1757665861430,-480.0,0.00014794,2]
[385118282,1757665861439,-480.0,0.00014794,2]
[385118285,1757665861451,-480.0,0.00014794,2]
[385118286,1757665861460,-458.08336739,0.00014794,2]
[385118289,1757665861471,-480.0,0.00014794,2]
[385118290,1757665861484,-480.0,0.00014794,2]
[385118292,1757665861494,-480.0,0.00014794,2]
[385118295,1757665861507,-480.0,0.00014794,2]
[385118297,1757665861518,-339.01910237,0.00014794,2]
[385118299,1757665861528,-480.0,0.00014794,2]
[385118301,1757665861537,-480.0,0.00014794,2]
[385118303,1757665861547,-480.0,0.00014794,2]
[385118305,1757665861556,-480.0,0.00014794,2]
[385118307,1757665861565,-480.0,0.00014794,2]
[385118309,1757665861574,-480.0,0.00014794,2]
[385118311,1757665861584,-480.0,0.00014794,2]
[385118312,1757665861593,-480.0,0.00014794,2]
[385118315,1757665861603,-480.0,0.00014794,2]
[385118317,1757665861612,-480.0,0.00014794,2]
[385118318,1757665861622,-480.0,0.00014794,2]
[385118321,1757665861631,-480.0,0.00014794,2]
[385118322,1757665861641,-480.0,0.00014794,2]
[385118324,1757665861650,-480.0,0.00014794,2]
[385118336,1757665861746,-480.0,0.00014794,2]
[385118338,1757665861755,-450.32260585,0.00014794,2]
[385118340,1757665861765,-480.0,0.00014794,2]
[385118342,1757665861774,-480.0,0.00014794,2]
[385118344,1757665861784,-480.0,0.00014794,2]
[385118346,1757665861794,-480.0,0.00014794,2]
[385118348,1757665861803,-480.0,0.00014794,2]
[385118350,1757665861812,-480.0,0.00014794,2]
[385118352,1757665861821,-480.0,0.00014794,2]
[385118354,1757665861831,-2802.61,0.00014794,2]
[385118356,1757665861840,-493.660361,0.00014794,2]
[385118359,1757665861849,-480.0,0.00014794,2]
[385118361,1757665861859,-480.0,0.00014794,2]
[385118363,1757665861869,-480.0,0.00014794,2]
[385118365,1757665861879,-480.0,0.00014794,2]
[385118367,1757665861888,-480.0,0.00014794,2]
[385118368,1757665861896,-480.0,0.00014794,2]
[385118370,1757665861905,-480.0,0.00014794,2]
[385118372,1757665861916,-480.0,0.00014794,2]
[385118374,1757665861925,-480.0,0.00014794,2]
[385118376,1757665861934,-480.0,0.00014794,2]
[385118378,1757665861944,-480.0,0.00014794,2]
[385118380,1757665861953,-480.0,0.00014794,2]
[385118382,1757665861962,-501.45647709,0.00014821,2]
[385118384,1757665861971,-1002.8461323,0.00014821,2]
[385118385,1757665861981,-186.43294705,0.00014821,2]
[385118386,1757665861990,-1000.0,0.00014821,2]
[385118387,1757665861999,-1000.0,0.00014821,2]
[385118388,1757665862008,-177.34305541,0.000149,2]
[385118389,1757665862017,-585.07738738,0.000149,2]
[385118390,1757665862026,-10585.41552735,0.0001492,2]
[385118391,1757665862035,-151.0,0.0001492,2]
[385118392,1757665862044,-151.0,0.0001492,2]
[385118393,1757665862053,-151.0,0.0001492,2]
[385118394,1757665862062,-151.0,0.0001492,2]
[385118396,1757665862071,-151.0,0.0001492,2]
[385118398,1757665862081,-151.0,0.0001492,2]
[385118400,1757665862089,-152.256682,0.0001492,2]
[385118402,1757665862099,-151.0,0.0001492,2]
[385118404,1757665862108,-720.0,0.00014937,2]
[385118406,1757665862118,-500.0,0.00014998,2]
[385118408,1757665862127,-500.0,0.00014998,2]
[385118410,1757665862136,-1002.05637824,0.00015,2]
[385118413,1757665862145,-259.53362747,0.00015,2]
[385118414,1757665862156,-500.0,0.00015068,2]
[385118416,1757665862168,-480.0,0.00015068,2]
[385118418,1757665862178,-480.0,0.00015068,2]
[385118420,1757665862187,-480.0,0.00015068,2]
[385118423,1757665862196,-480.0,0.00015068,2]
[385118425,1757665862205,-480.0,0.00015068,2]
[385118426,1757665862214,-480.0,0.00015068,2]
[385118429,1757665862224,-480.0,0.00015068,2]
[385118431,1757665862233,-160.66967493,0.00015068,2]
[385118433,1757665862242,-608.40252563,0.00015068,2]
[385118435,1757665862251,-480.0,0.00015068,2]
[385118437,1757665862260,-151.0,0.00015068,2]
[385118439,1757665862270,-152.812179,0.00015068,2]
[385118440,1757665862279,-292.295671,0.00015068,2]
[385118442,1757665862288,-480.0,0.00015068,2]
[385118445,1757665862297,-151.0,0.00015068,2]
[385118447,1757665862307,-480.0,0.00015068,2]
[385118449,1757665862316,-480.0,0.00015068,2]
[385118450,1757665862326,-480.0,0.00015068,2]
[385118452,1757665862335,-480.0,0.00015068,2]
[385118454,1757665862345,-480.0,0.00015068,2]
[385118456,1757665862354,-504.52477876,0.00015068,2]
[385118458,1757665862362,-480.0,0.00015068,2]
[385118460,1757665862372,-480.0,0.00015068,2]
[385118462,1757665862381,-480.0,0.00015068,2]
[385118464,1757665862390,-480.0,0.00015068,2]
[385118467,1757665862399,-480.0,0.00015068,2]
[385118469,1757665862409,-480.0,0.00015068,2]
[385118471,1757665862418,-480.0,0.00015068,2]
[385118473,1757665862429,-480.0,0.00015068,2]
[385118475,1757665862439,-344.81434921,0.00015068,2]
[385118477,1757665862448,-581.7321875,0.00015068,2]
[385118478,1757665862457,-271.32192025,0.00015068,2]
[385118480,1757665862467,-480.0,0.00015068,2]
[385118482,1757665862476,-480.0,0.00015068,2]
[385118484,1757665862486,-480.0,0.00015068,2]
[385118486,1757665862495,-480.0,0.00015068,2]
[385118488,1757665862504,-480.0,0.00015068,2]
[385118490,1757665862515,-480.0,0.00015068,2]
[385118492,1757665862525,-239.160374,0.00015068,2]
[385118494,1757665862535,-480.0,0.00015068,2]
[385118496,1757665862545,-151.0,0.00015068,2]
[385118498,1757665862555,-151.0,0.00015068,2]
[385118500,1757665862564,-153.772262,0.00015068,2]
[385118502,1757665862574,-480.0,0.00015068,2]
[385118504,1757665862583,-480.0,0.00015068,2]
[385118506,1757665862593,-480.0,0.00015068,2]
[385118508,1757665862602,-480.0,0.00015068,2]
[385118510,1757665862611,-480.0,0.00015068,2]
[385118513,1757665862621,-151.0,0.00015068,2]
[385118515,1757665862630,-480.0,0.00015068,2]
[385118517,1757665862639,-151.0,0.00015068,2]
[385118519,1757665862648,-213.82,0.00015068,2]
[385118521,1757665862658,-480.0,0.00015068,2]
[385118523,1757665862666,-480.0,0.00015068,2]
[385118525,1757665862675,-480.0,0.00015068,2]
[385118527,1757665862684,-480.0,0.00015068,2]
[385118529,1757665862694,-480.0,0.00015068,2]
[385118531,1757665862703,-496.57827321,0.00015068,2]
[385118533,1757665862713,-480.0,0.00015068,2]
[385118535,1757665862723,-489.78955133,0.00015068,2]
[385118537,1757665862733,-480.0,0.00015068,2]
[385118539,1757665862742,-480.0,0.00015068,2]
[385118541,1757665862751,-480.0,0.00015068,2]
[385118543,1757665862760,-480.0,0.00015068,2]
[385118545,1757665862770,-480.0,0.00015068,2]
[385118547,1757665862779,-480.0,0.00015068,2]
[385118549,1757665862788,-480.0,0.00015068,2]
[385118551,1757665862797,-480.0,0.00015068,2]
[385118553,1757665862807,-480.0,0.00015068,2]
[385118555,1757665862817,-480.0,0.00015068,2]
[385118557,1757665862826,-480.0,0.00015068,2]
[385118559,1757665862835,-480.0,0.00015068,2]
[385118561,1757665862845,-480.0,0.00015068,2]
[385118563,1757665862857,-480.0,0.00015068,2]
[385118565,1757665862866,-480.0,0.00015068,2]
[385118567,1757665862876,-480.0,0.00015068,2]
[385118569,1757665862885,-480.0,0.00015068,2]
[385118571,1757665862895,-480.0,0.00015068,2]
[385118573,1757665862904,-480.0,0.00015068,2]
[385118575,1757665862914,-480.0,0.00015068,2]
[385118577,1757665862924,-480.0,0.00015068,2]
[385118579,1757665862933,-1950.02,0.00015068,2]
[385118581,1757665862942,-218.72718971,0.00015068,2]
[385118583,1757665862952,-480.0,0.00015068,2]
[385118585,1757665862961,-480.0,0.00015068,2]
[385118587,1757665862970,-480.0,0.00015068,2]
[385118589,1757665862979,-335.73,0.00015068,2]
[385118591,1757665862989,-480.0,0.00015068,2]
[385118593,1757665862998,-480.0,0.00015068,2]
[385118595,1757665863007,-480.0,0.00015068,2]
[385118598,1757665863017,-480.0,0.00015068,2]
[385118600,1757665863027,-480.0,0.00015068,2]
[385118602,1757665863037,-480.0,0.00015068,2]
[385118604,1757665863046,-480.0,0.00015068,2]
[385118606,1757665863055,-480.0,0.00015068,2]
[385118608,1757665863065,-480.0,0.00015068,2]
[385118610,1757665863074,-480.0,0.00015068,2]
[385118612,1757665863083,-480.0,0.00015068,2]
[385118614,1757665863094,-480.0,0.00015068,2]
[385118616,1757665863102,-480.0,0.00015068,2]
[385118618,1757665863111,-480.0,0.00015068,2]
[385118620,1757665863121,-480.0,0.00015068,2]
[385118622,1757665863130,-480.0,0.00015068,2]
[385118624,1757665863139,-480.0,0.00015068,2]
[385118626,1757665863148,-528.24,0.00015068,2]
[385118628,1757665863158,-480.0,0.00015068,2]
[385118630,1757665863167,-480.0,0.00015068,2]
[385118632,1757665863177,-480.0,0.00015068,2]
[385118634,1757665863186,-480.0,0.00015068,2]
[385118636,1757665863196,-480.0,0.00015068,2]
[385118638,1757665863205,-480.0,0.00015068,2]
[385118640,1757665863215,-806.24,0.00015068,2]
[385118642,1757665863224,-480.0,0.00015068,2]
[385118644,1757665863233,-480.0,0.00015068,2]
[385118646,1757665863242,-480.0,0.00015068,2]
[385118648,1757665863251,-480.0,0.00015068,2]
[385118650,1757665863261,-480.0,0.00015068,2]
[385118652,1757665863271,-480.0,0.00015068,2]
[385118654,1757665863281,-480.0,0.00015068,2]
[385118656,1757665863291,-480.0,0.00015068,2]
[385118658,1757665863299,-480.0,0.00015068,2]
[385118660,1757665863309,-480.0,0.00015068,2]
[385118662,1757665863318,-506.8680444,0.00015068,2]
[385118664,1757665863327,-480.0,0.00015068,2]
[385118666,1757665863336,-480.0,0.00015068,2]
[385118668,1757665863345,-480.0,0.00015068,2]
[385118670,1757665863355,-480.0,0.00015068,2]
[385118672,1757665863365,-480.0,0.00015068,2]
[385118674,1757665863374,-480.0,0.00015068,2]
[385118684,1757665863466,-480.0,0.00015068,2]
[385118687,1757665863478,-507.98928696,0.00015068,2]
[385118689,1757665863488,-480.0,0.00015068,2]
[385118691,1757665863498,-480.0,0.00015068,2]
[385118693,1757665863507,-480.0,0.00015068,2]
[385118695,1757665863517,-480.0,0.00015068,2]
[385118697,1757665863527,-480.0,0.00015068,2]
[385118699,1757665863537,-480.0,0.00015068,2]
[385118701,1757665863546,-365.77306183,0.00015068,2]
[385118703,1757665863555,-480.0,0.00015068,2]
[385118705,1757665863565,-480.0,0.00015068,2]
[385118707,1757665863574,-480.0,0.00015068,2]
[385118709,1757665863583,-2834.03272758,0.00015068,2]
[385118712,1757665863602,-839.44517487,0.00015068,2]
[385118770,1757665864133,-0.0249587,0.00015068,2]
[385118780,1757665864216,-210.38713885,0.00015068,2]
[385118782,1757665864226,-480.0,0.00015068,2]
[385118784,1757665864235,-480.0,0.00015068,2]
[385118786,1757665864245,-172.13332687,0.00015068,2]
[385118842,1757665864780,480.0,0.00013698,2]
[385119030,1757665866584,480.0,0.00013698,2]
[385119041,1757665866684,480.0,0.00013698,2]
[385119360,1757665870633,480.0,0.00013698,2]
[385119405,1757665871077,571.04829529,0.00013698,2]
[385119589,1757665872845,480.0,0.00013698,2]
[385119627,1757665873196,480.0,0.00013698,2]
[385119673,1757665873647,604.68,0.00013698,2]
[385119694,1757665873834,480.0,0.00013698,2]
[385119702,1757665873911,480.0,0.00013698,2]
[385119788,1757665874789,481.76364217,0.00013698,2]
[385119802,1757665874915,480.0,0.00013698,2]
[385119848,1757665875365,480.0,0.00013698,2]
[385119869,1757665875574,480.0,0.00013698,2]
[385119913,1757665876274,480.0,0.00013698,2]
[385119950,1757665876635,483.32335443,0.00013698,2]
[385120046,1757665877547,480.0,0.00013698,2]
[385120155,1757665878673,480.0,0.00013698,2]
[385120249,1757665879551,240.50131448,0.00013698,2]
[385120325,1757665880978,480.0,0.00013698,2]
[385120326,1757665881590,480.0,0.00013698,2]
[385120327,1757665881995,480.0,0.00013698,2]
[385120328,1757665883502,396.11649269,0.00013698,2]
[385120329,1757665884696,480.0,0.00013698,2]
[385120331,1757665886101,461.02074401,0.00013698,2]
[385120335,1757665886408,480.0,0.00013698,2]
[385120336,1757665886887,480.0,0.00013698,2]
[385120337,1757665887050,480.0,0.00013698,2]
[385120338,1757665887306,486.14540909,0.00013698,2]
[385120339,1757665887337,482.90839945,0.00013698,2]
[385120340,1757665888036,482.40003297,0.00013698,2]
[385120341,1757665888402,480.0,0.00013698,2]
[385120342,1757665889128,480.0,0.00013698,2]
[385120343,1757665889699,480.0,0.00013698,2]
[385120344,1757665891396,480.0,0.00013698,2]
[385120345,1757665891521,480.0,0.00013698,2]
[385120346,1757665892225,185.26996645,0.00013698,2]
[385120347,1757665893929,480.0,0.00013698,2]
[385120348,1757665893978,480.0,0.00013698,2]
[385120349,1757665894116,480.0,0.00013698,2]
[385120350,1757665896004,480.0,0.00013698,2]
[385120351,1757665896601,482.40454939,0.00013698,2]
[385120352,1757665897111,480.0,0.00013698,2]
[385120353,1757665898632,1000.0,0.00018967,20]
[385120354,1757665901159,480.0,0.00013698,2]
[385120355,1757665901578,480.0,0.00013698,2]
[385120356,1757665902232,436.18133661,0.00013698,2]
[385120357,1757665903667,480.0,0.00013698,2]
[385120358,1757665903796,480.0,0.00013698,2]
[385120359,1757665904438,480.0,0.00013698,2]
[385120360,1757665905533,484.79813016,0.00013698,2]
[385120361,1757665906130,480.0,0.00013698,2]
[385120362,1757665907275,480.0,0.00013698,2]
[385120363,1757665907387,480.0,0.00013698,2]
[385120364,1757665907975,480.0,0.00013698,2]
[385120365,1757665908927,480.0,0.00013698,2]
[385120366,1757665908975,251.35601739,0.00013698,2]
[385120367,1757665908998,228.64398261,0.00013698,2]
[385120368,1757665909598,480.0,0.00013698,2]
[385120369,1757665910631,2751.08,0.00013698,2]
[385120370,1757665914917,480.0,0.00013698,2]
[385120371,1757665916366,480.0,0.00013698,2]
[385120372,1757665919259,480.0,0.00013698,2]
[385120373,1757665921742,480.0,0.00013698,2]
[385120376,1757665924020,480.0,0.00013698,2]
[385120377,1757665924654,480.0,0.00013698,2]
[385120378,1757665927939,480.0,0.00013698,2]
[385120379,1757665928339,480.0,0.00013698,2]
[385120380,1757665929158,480.0,0.00013698,2]
[385120381,1757665930534,480.0,0.00013698,2]
[385120382,1757665931325,480.0,0.00013698,2]
[385120383,1757665931791,480.0,0.00013698,2]
[385120384,1757665931995,480.0,0.00013698,2]
[385120385,1757665934666,480.0,0.00013698,2]
[385120386,1757665934858,480.0,0.00013698,2]
[385120387,1757665935512,480.0,0.00013698,2]
[385120388,1757665938638,480.0,0.00013698,2]
[385120389,1757665943360,480.0,0.00013698,2]
[385120391,1757665945074,480.0,0.00013698,2]
[385120392,1757665947423,480.0,0.00013698,2]
[385120393,1757665954897,480.0,0.00013698,2]
[385120394,1757665956805,480.0,0.00013698,2]
[385120395,1757665956838,480.0,0.00013698,2]
[385120396,1757665960395,400.01,0.00013698,2]
[385120397,1757665960433,79.99,0.00013698,2]
[385120398,1757665961032,480.0,0.00013698,2]
[385120399,1757665962741,480.0,0.00013698,2]
[385120400,1757665962770,480.0,0.00013698,2]
[385120401,1757665963321,480.0,0.00013698,2]
[385120402,1757665963533,480.0,0.00013698,2]
[385120403,1757665965247,480.0,0.00013698,2]
[385120404,1757665966814,480.0,0.00013698,2]
[385120405,1757665967751,480.0,0.00013698,2]
[385120406,1757665968988,480.0,0.00013698,2]
[385120407,1757665970884,480.0,0.00013698,2]
[385120408,1757665971143,482.82757776,0.00013698,2]
[385120409,1757665973184,480.0,0.00013698,2]
[385120410,1757665978794,480.0,0.00013698,2]
[385120411,1757665978930,480.0,0.00013698,2]
[385120412,1757665981531,480.0,0.00013698,2]
[385120413,1757665981814,509.31083558,0.00013698,2]
[385120414,1757665982661,483.64241548,0.00013698,2]
[385120415,1757665982861,480.0,0.00013698,2]
[385120416,1757665984132,481.87371809,0.00013698,2]
[385120417,1757665984928,762.36545309,0.00013698,2]
[385120418,1757665984953,720.15454691,0.00013698,2]
[385120419,1757665986044,480.0,0.00013698,2]
[385120420,1757665988074,480.0,0.00013698,2]
[385120422,1757665989924,483.99890127,0.00013698,2]
[385120423,1757665990006,7835.85655182,0.00013214,2]
[385120424,1757665990030,10000.01,0.00013214,2]
[385120425,1757665990054,10000.01,0.00013214,2]
[385120426,1757665990077,10000.01,0.00013214,2]
[385120427,1757665990100,10000.01,0.00013214,2]
[385120428,1757665990124,10000.01,0.00013214,2]
[385120429,1757665990146,10000.01,0.00013214,2]
[385120430,1757665990170,10000.01,0.00013214,2]
[385120431,1757665990193,10000.01,0.00013214,2]
[385120432,1757665990217,10000.01,0.00013214,2]
[385120433,1757665990656,-430.81368578,0.00013214,2]
[385120434,1757665994522,-253.26243942,0.00013214,2]
[385120435,1757665996744,-471.12972035,0.00013082,2]
[385120436,1757665998293,-189.30466192,0.00013082,2]
[385120437,1757665998329,-4519.86877716,0.00013082,2]
[385120438,1757666003223,-203.2046558,0.00013214,2]
[385120439,1757666005613,-393.72357633,0.00013214,2]
[385120440,1757666007904,-430.81368578,0.00013214,2]
[385120441,1757666010437,684.0761252,0.00013082,2]
[385120442,1757666013121,-326.44136532,0.00013214,2]
[385120443,1757666015362,-191.13106353,0.00013214,2]
[385120444,1757666016998,-440.49561061,0.00013214,2]
[385120445,1757666018441,276.19632048,0.00013082,2]
[385120446,1757666018465,4437.77350141,0.00013082,2]
[385120447,1757666019880,-208.42979622,0.00013214,2]
[385120448,1757666022178,-294.57134944,0.00013214,2]
[385120449,1757666025602,-213.58288526,0.00013214,2]
[385120450,1757666027147,-207.12311892,0.00013214,2]
[385120451,1757666027375,173.315537,0.00013145,2]
[385120452,1757666027518,300.0,0.00013082,2]
[385120453,1757666027960,201.97,0.00012329,2]
[385120454,1757666030715,-243.18141578,0.00013214,2]
[385120455,1757666035662,-161.32346793,0.00013214,2]
[385120456,1757666036064,4886.95096159,0.00013082,2]
[385120457,1757666036085,845.72568161,0.00013082,2]
[385120458,1757666037806,-358.67745514,0.00013214,2]
[385120459,1757666038609,168.31,0.00012329,2]
[385120460,1757666039567,-293.90784349,0.00013214,2]
[385120461,1757666041990,-524.13135283,0.00013214,2]
[385120462,1757666042782,300.0,0.00013213,2]
[385120463,1757666045203,-266.27671976,0.00013214,2]
[385120464,1757666047498,-152.33357816,0.00013214,2]
[385120465,1757666049032,841.55,0.00012329,2]
[385120466,1757666051579,-343.28657357,0.00013214,2]
[385120467,1757666056424,-273.06939435,0.00013214,2]
[385120468,1757666058045,-364.97819225,0.00013214,2]
[385120469,1757666061937,-418.02918404,0.00013214,2]
[385120470,1757666065176,-409.96063973,0.00013214,2]
[385120471,1757666066178,2342.10499496,0.00013082,2]
[385120472,1757666066825,-355.6001215,0.00013214,2]
[385120473,1757666071042,-263.37664868,0.00013214,2]
[385120474,1757666073750,-165.43151966,0.00013214,2]
[385120475,1757666075539,-184.11073457,0.00013214,2]
[385120476,1757666077317,-238.96833848,0.00013214,2]
[385120477,1757666082013,-184.11073457,0.00013214,2]
[385120478,1757666084366,-153.15883562,0.00013214,2]
[385120479,1757666086046,-172.72673596,0.00013214,2]
[385120480,1757666087991,-439.56383155,0.00013214,2]
[385120481,1757666089695,238.96833848,0.00013082,2]
[385120482,1757666089784,-155.90967631,0.00013214,2]
[385120483,1757666094403,-216.76467282,0.00013214,2]
[385120484,1757666095936,-153.15883562,0.00013214,2]
[385120485,1757666098189,-339.81310679,0.00013214,2]
[385120486,1757666101492,-206.78075395,0.00013214,2]
[385120487,1757666104290,-228.42226009,0.00013214,2]
[385120488,1757666105884,-183.78151988,0.00013214,2]
[385120489,1757666111005,-244.6084825,0.00013214,2]
[385120490,1757666113217,-448.13803104,0.00013214,2]
[385120491,1757666113459,618.98453392,0.00013082,2]
[385120492,1757666138012,692.74651354,0.00013082,2]
[385120493,1757666166606,3951.61993749,0.00012835,2]
[385120494,1757666166630,10000.01,0.00012835,2]
[385120495,1757666166651,10000.01,0.00012835,2]
[385120496,1757666166673,1503.89230511,0.00012835,2]
[385120497,1757666318956,278.9400384,0.00028465,120]
[385120498,1757666347931,1000.0,0.00012593,2]
[385120499,1757666396864,7496.11769489,0.000132,2]
[385120500,1757666396888,7770.88230511,0.000132,2]
[385120503,1757666646906,2229.12769489,0.00012617,2]
[385120504,1757666646928,1155.56006251,0.00012617,2]
[385120513,1757666830058,666.0,0.00012617,2]
[385120520,1757666847657,-2296.3858201,0.00013214,2]
[385120521,1757666847874,-5000.0,0.00013214,2]
[385120522,1757666848118,-5000.0,0.00013214,2]
[385120523,1757666848422,-5000.0,0.00013214,2]
[385120524,1757666848843,-5000.0,0.00013214,2]
[385120525,1757666849124,-5000.0,0.00013214,2]
[385120526,1757666849371,-5000.0,0.00013214,2]
[385120527,1757666849863,-5000.0,0.00013214,2]
[385120528,1757666850140,-5000.0,0.00013214,2]
[385120529,1757666850549,-5000.0,0.00013214,2]
[385120530,1757666850976,-5000.0,0.00013214,2]
[385120531,1757666851184,-5000.0,0.00013214,2]
[385120532,1757666851708,-5000.0,0.00013214,2]
[385120533,1757666852452,-5000.0,0.00013214,2]
[385120534,1757666852870,-5000.0,0.00013214,2]
[385120535,1757666853168,-5000.0,0.00013214,2]
[385120536,1757666853487,-5000.0,0.00013214,2]
[385120537,1757666853801,-5000.0,0.00013214,2]
[385120538,1757666854211,-5000.0,0.00013214,2]
[385120539,1757666854554,-5000.0,0.00013214,2]
[385120540,1757666855506,-5000.0,0.00013214,2]
[385120541,1757666855770,-5000.0,0.00013214,2]
[385120542,1757666856083,-5000.0,0.00013214,2]
[385120543,1757666856397,-5000.0,0.00013214,2]
[385120544,1757666856656,-5000.0,0.00013214,2]
[385120545,1757666856899,-5000.0,0.00013214,2]
[385120546,1757666857168,-5000.0,0.00013214,2]
[385120547,1757666857552,-5000.0,0.00013214,2]
[385120548,1757666857803,-5000.0,0.00013214,2]
[385120549,1757666858292,-5000.0,0.00013214,2]
[385120550,1757666858537,-5000.0,0.00013214,2]
[385120551,1757666858842,-5000.0,0.00013214,2]
[385120552,1757666859097,-5000.0,0.00013214,2]
[385120553,1757666859400,-5000.0,0.00013214,2]